bitfinex/quotes_BTCUSD_20220202
["timestamp","ask_amount","ask_price","bid_price","bid_amount"]
[1643799753899,0.08109157,38561.0,38559.0,0.00117666]
[1643799754700,0.08109157,38561.0,38557.0,0.00011084]
[1643799754899,0.08109157,38561.0,38558.0,0.00117667]
[1643799755901,0.08109157,38561.0,38556.0,0.00011084]
[1643799756101,0.08109157,38561.0,38558.0,0.00117669]
[1643799757102,0.08109157,38561.0,38556.0,0.00011084]
[1643799757346,0.08109157,38561.0,38558.0,0.0011779]
[1643799758246,0.13109157,38561.0,38556.0,0.00011084]
[1643799758446,0.13109157,38561.0,38558.0,0.0011779]
[1643799759448,0.13109157,38561.0,38556.0,0.00011084]
[1643799759648,0.13109157,38561.0,38558.0,0.0011779]
[1643799759847,0.08109157,38561.0,38558.0,0.0011779]
[1643799760047,0.13109157,38561.0,38558.0,0.0011779]
[1643799760247,0.08109157,38561.0,38558.0,0.0011779]
[1643799760450,0.13109157,38561.0,38558.0,0.0011779]
[1643799760648,0.13109157,38561.0,38556.0,0.00011084]
[1643799760850,0.13109157,38561.0,38558.0,0.00117763]
[1643799761301,0.349323,38560.0,38558.0,0.00117763]
[1643799761699,0.13109157,38561.0,38558.0,0.00117763]
[1643799761901,0.13109157,38561.0,38556.0,0.00011084]
[1643799762100,0.13109157,38561.0,38557.0,0.00117764]
[1643799762601,0.26078343,38561.0,38557.0,0.00117764]
[1643799763006,0.26078343,38561.0,38556.0,0.00011084]
[1643799763205,0.26078343,38561.0,38554.0,0.32840513]
[1643799763404,0.26078343,38561.0,38557.0,0.00117764]
[1643799763604,0.47730014,38560.0,38557.0,0.00117764]
[1643799764206,0.47730014,38560.0,38555.0,0.00011084]
[1643799764405,0.47730014,38560.0,38557.0,0.00117772]
[1643799764850,0.05,38559.0,38557.0,0.00117772]
[1643799765450,0.05,38559.0,38555.0,0.00011084]
[1643799765652,0.05,38559.0,38556.0,0.00117774]
[1643799765850,0.37230014,38560.0,38556.0,0.00117774]
[1643799766651,0.36538688,38559.0,38555.0,0.00011084]
[1643799766851,0.12969778,38559.0,38556.0,0.00117774]
[1643799767151,0.37230014,38560.0,38556.0,0.00117774]
[1643799767952,0.37230014,38560.0,38555.0,0.00011084]
[1643799768155,0.06485,38559.0,38556.0,0.00117772]
[1643799768352,0.129702,38559.0,38556.0,0.00117772]
[1643799768599,0.179702,38559.0,38556.0,0.00117772]
[1643799768999,0.179702,38559.0,38555.0,0.00011084]
[1643799769199,0.244554,38559.0,38556.0,0.00117774]
[1643799769400,0.30940504,38559.0,38556.0,0.00117774]
[1643799769999,0.05,38558.0,38556.0,0.00117774]
[1643799770201,0.05,38558.0,38555.0,0.00011084]
[1643799770400,0.24455304,38559.0,38555.0,0.00128859]
[1643799770600,0.24455304,38559.0,38555.0,0.00117775]
[1643799770804,0.19386209,38559.0,38555.0,0.00117775]
[1643799771201,0.19386209,38559.0,38555.0,0.00128859]
[1643799771399,0.19386209,38559.0,38555.0,0.00011084]
[1643799771599,0.19386209,38559.0,38555.0,0.00128859]
[1643799771801,0.19386209,38559.0,38555.0,0.00117775]
[1643799772449,0.19386209,38559.0,38555.0,0.00128859]
[1643799772649,0.19386209,38559.0,38555.0,0.00011084]
[1643799772848,0.19386209,38559.0,38555.0,0.00128859]
[1643799773049,0.19386209,38559.0,38555.0,0.00117775]
[1643799773249,0.25871409,38559.0,38555.0,0.00117775]
[1643799773452,0.25871409,38559.0,38555.0,0.00128859]
[1643799773850,0.25871409,38559.0,38555.0,0.00011084]
[1643799774050,0.25871409,38559.0,38555.0,0.00128859]
[1643799774251,0.25871409,38559.0,38555.0,0.00117775]
[1643799774854,0.25871409,38559.0,38555.0,0.00128859]
[1643799775152,0.25871409,38559.0,38555.0,0.00011084]
[1643799775451,0.25871409,38559.0,38555.0,0.00117775]
[1643799775651,0.25371409,38559.0,38555.0,0.00117775]
[1643799775851,0.25371409,38559.0,38555.0,0.00128859]
[1643799776300,0.25371409,38559.0,38555.0,0.00011084]
[1643799776503,0.25371409,38559.0,38555.0,0.00117775]
[1643799776901,0.114851,38558.0,38555.0,0.00117775]
[1643799777101,0.12970198,38557.0,38555.0,0.00128859]
[1643799777301,0.179702,38558.0,38557.0,0.25940395]
[1643799778503,0.244553,38558.0,38557.0,0.25940395]
[1643799779307,0.593876,38558.0,38557.0,0.25940395]
[1643799780350,0.179702,38558.0,38557.0,0.25940395]
[1643799780747,0.229702,38558.0,38557.0,0.25940395]
[1643799780947,0.164851,38558.0,38557.0,0.25940395]
[1643799781750,0.114851,38558.0,38557.0,0.25940395]
[1643799787260,0.05,38558.0,38557.0,0.25940395]
[1643799787957,0.06485075,38559.0,38557.0,0.25940395]
[1643799788860,0.17970075,38559.0,38557.0,0.25940395]
[1643799794302,0.349323,38558.0,38557.0,0.25940395]
[1643799795153,0.17970075,38559.0,38557.0,0.25940395]
[1643799795752,0.349323,38558.0,38557.0,0.25940395]
[1643799796354,0.17970075,38559.0,38557.0,0.25940395]
[1643799796953,0.349323,38558.0,38557.0,0.25940395]
[1643799797353,0.17970075,38559.0,38557.0,0.25940395]
[1643799798603,0.349323,38558.0,38557.0,0.25940395]
[1643799798803,0.17970075,38559.0,38557.0,0.25940395]
[1643799799203,0.17970075,38559.0,38558.0,0.26038704]
[1643799799404,0.11485075,38559.0,38558.0,0.26038704]
[1643799799604,0.06484049,38561.0,38557.0,0.25940395]
[1643799800404,0.06484049,38561.0,38557.0,0.26058164]
[1643799801204,0.06474934,38561.0,38557.0,0.26058164]
[1643799801404,0.06474934,38561.0,38558.0,0.22013425]
[1643799802553,0.06474934,38561.0,38557.0,0.26058164]
[1643799802754,0.06474934,38561.0,38557.0,0.25940395]
[1643799802953,0.06474934,38561.0,38558.0,0.00117768]
[1643799803553,0.06474934,38561.0,38558.0,0.21980528]
[1643799803954,0.06474934,38561.0,38558.0,0.2186276]
[1643799804155,0.06474934,38561.0,38558.0,0.00117768]
[1643799805156,0.06474934,38561.0,38557.0,0.25940395]
[1643799805357,0.06474934,38561.0,38558.0,0.00117768]
[1643799806004,0.01131753,38562.0,38558.0,0.00117768]
[1643799806200,0.01131753,38562.0,38557.0,0.25940395]
[1643799806400,0.01131753,38562.0,38558.0,0.00117766]
[1643799807400,0.06484049,38561.0,38557.0,0.25940395]
[1643799807602,0.12968649,38561.0,38558.0,0.00117766]
[1643799808802,0.12968649,38561.0,38558.0,0.00117768]
[1643799809956,0.12968649,38561.0,38557.0,0.25940395]
[1643799810257,0.12968649,38561.0,38558.0,0.00117768]
[1643799811058,0.12968649,38561.0,38557.0,0.25940395]
[1643799811257,0.12968649,38561.0,38558.0,0.00117768]
[1643799811258,0.064848,38559.0,38558.0,0.00117768]
[1643799812259,0.064848,38559.0,38557.0,0.25940395]
[1643799812457,0.064848,38559.0,38557.0,0.26058166]
[1643799812657,0.12969526,38559.0,38557.0,0.26058166]
[1643799813263,0.12969526,38559.0,38558.0,0.2183474]
[1643799813507,0.12969526,38559.0,38557.0,0.25940395]
[1643799813704,0.22238112,38558.0,38557.0,0.26058166]
[1643799814505,0.06484726,38559.0,38557.0,0.26058166]
[1643799814805,0.06484726,38559.0,38557.0,0.25940395]
[1643799815408,0.2090077,38558.0,38557.0,0.25940395]
[1643799816007,0.06484726,38559.0,38557.0,0.25940395]
[1643799817009,0.31240725,38559.0,38557.0,0.25940395]
[1643799817255,0.06484726,38559.0,38557.0,0.25940395]
[1643799817457,0.05,38561.0,38557.0,0.25940395]
[1643799817959,0.13379143,38563.0,38557.0,0.25940395]
[1643799818158,0.25857181,38559.0,38557.0,0.25940395]
[1643799818656,0.05,38559.0,38558.0,0.00117766]
[1643799819058,0.064847,38562.0,38558.0,0.00117766]
[1643799819257,0.06484472,38560.0,38558.0,0.00117766]
[1643799819457,0.06484472,38560.0,38557.0,0.25940395]
[1643799819657,0.06484472,38560.0,38557.0,0.26058164]
[1643799820657,0.06484472,38560.0,38557.0,0.25940395]
[1643799820859,0.06484472,38560.0,38557.0,0.26058166]
[1643799821909,0.06484472,38560.0,38557.0,0.25940395]
[1643799822108,0.06484472,38560.0,38557.0,0.26058166]
[1643799822710,0.12969272,38560.0,38557.0,0.26058166]
[1643799823113,0.06484472,38560.0,38557.0,0.25940395]
[1643799823311,0.06484472,38560.0,38557.0,0.26058166]
[1643799824310,0.06484472,38560.0,38557.0,0.25940395]
[1643799824510,0.12969172,38560.0,38557.0,0.26058166]
[1643799825158,0.19453972,38560.0,38557.0,0.26058166]
[1643799825559,0.19453972,38560.0,38557.0,0.25940395]
[1643799825761,0.19453972,38560.0,38557.0,0.26058166]
[1643799826759,0.12969172,38560.0,38557.0,0.25940395]
[1643799826960,0.12969172,38560.0,38557.0,0.26058166]
[1643799827859,0.12969172,38560.0,38557.0,0.25940395]
[1643799828060,0.12969172,38560.0,38557.0,0.26058166]
[1643799829109,0.12969172,38560.0,38557.0,0.25940395]
[1643799829312,0.12969172,38560.0,38557.0,0.26058166]
[1643799829912,0.06484472,38560.0,38557.0,0.26058166]
[1643799830313,0.12968708,38562.0,38557.0,0.25940395]
[1643799830511,0.12968708,38562.0,38557.0,0.26058166]
[1643799830712,0.06484208,38562.0,38557.0,0.26058166]
[1643799831411,0.06484208,38562.0,38557.0,0.25940395]
[1643799831611,0.06484208,38562.0,38558.0,0.00117768]
[1643799831812,0.23886987,38560.0,38558.0,0.00117768]
[1643799832011,0.30371563,38560.0,38558.0,0.00117768]
[1643799832255,0.36856163,38560.0,38558.0,0.00117768]
[1643799832659,0.36856163,38560.0,38557.0,0.25940395]
[1643799832856,0.36856163,38560.0,38557.0,0.26058164]
[1643799833056,0.41856163,38560.0,38557.0,0.26058164]
[1643799834057,0.41856163,38560.0,38557.0,0.26058166]
[1643799834858,0.43340863,38560.0,38557.0,0.26058166]
[1643799835060,0.43340863,38560.0,38557.0,0.25940395]
[1643799835258,0.43340863,38560.0,38557.0,0.26058166]
[1643799835259,0.06485,38558.0,38557.0,0.26058166]
[1643799835458,0.245094,38558.0,38557.0,0.26058166]
[1643799835859,0.295094,38558.0,38557.0,0.26058166]
[1643799836110,0.11485,38558.0,38557.0,0.26058166]
[1643799836307,0.11485,38558.0,38557.0,0.25940395]
[1643799837307,0.38027104,38558.0,38557.0,0.25940395]
[1643799842362,0.06484992,38559.0,38557.0,0.25940395]
[1643799844607,0.12969792,38559.0,38557.0,0.25940395]
[1643799844809,0.849323,38558.0,38557.0,0.25940395]
[1643799845007,0.899323,38558.0,38557.0,0.25940395]
[1643799845216,1.07532281,38558.0,38557.0,0.25934274]
[1643799854112,1.12532281,38558.0,38557.0,0.25895495]
[1643799854964,1.07532281,38558.0,38557.0,0.25895495]
[1643799855364,1.12532281,38558.0,38557.0,0.25895495]
[1643799855765,1.07532281,38558.0,38557.0,0.25895495]
[1643799858170,0.57532281,38558.0,38557.0,0.25895495]
[1643799858371,0.17599981,38558.0,38557.0,0.25895495]
[1643799858612,0.24084973,38559.0,38557.0,0.25895495]
[1643799858813,0.06484992,38559.0,38557.0,0.25895495]
[1643799859014,0.12969153,38561.0,38557.0,0.25895495]
[1643799859919,0.0001854,38566.0,38558.0,0.6084658]
[1643799860118,0.09107633,38570.0,38558.0,0.6084658]
[1643799860119,0.0001854,38567.0,38558.0,0.6084658]
[1643799860514,0.0001854,38567.0,38559.0,0.00059873]
[1643799860717,0.22319668,38567.0,38559.0,0.06543173]
[1643799860914,0.22319668,38567.0,38560.0,0.2591428]
[1643799860915,0.2625195,38565.0,38560.0,0.2591428]
[1643799861116,0.2625195,38565.0,38559.0,0.00059873]
[1643799861516,0.09464871,38562.0,38557.0,0.51809775]
[1643799861717,0.23848128,38560.0,38559.0,0.00126321]
[1643799862773,0.23848128,38560.0,38557.0,0.25895495]
[1643799862974,0.23848128,38560.0,38558.0,0.00126322]
[1643799863772,0.09464871,38562.0,38558.0,0.00126322]
[1643799863973,0.09464871,38562.0,38557.0,0.25895495]
[1643799864173,0.09464871,38562.0,38557.0,0.26021818]
[1643799864776,0.21971717,38561.0,38557.0,0.26021818]
[1643799864975,0.34940441,38561.0,38557.0,0.26021818]
[1643799865178,0.34940441,38561.0,38557.0,0.25895495]
[1643799865374,0.34940441,38561.0,38557.0,0.26000684]
[1643799866413,0.34940441,38561.0,38557.0,0.25895495]
[1643799866613,0.34940441,38561.0,38557.0,0.26000684]
[1643799868717,0.34940441,38561.0,38557.0,0.25895495]
[1643799868917,0.34940441,38561.0,38557.0,0.26006126]
[1643799869962,0.34940441,38561.0,38557.0,0.25895495]
[1643799870264,0.32172864,38559.0,38557.0,0.26006126]
[1643799870461,0.38657765,38559.0,38557.0,0.26006126]
[1643799871060,0.38657765,38559.0,38557.0,0.25895495]
[1643799874309,0.95481213,38558.0,38557.0,0.25895495]
[1643799874707,1.13080205,38558.0,38557.0,0.25895495]
[1643799875909,0.78080205,38558.0,38557.0,0.25895495]
[1643799876509,0.52531292,38558.0,38557.0,0.25895495]
[1643799876711,0.17598992,38558.0,38557.0,0.25895495]
[1643799876909,0.24083792,38559.0,38557.0,0.25895495]
[1643799877111,0.064848,38559.0,38557.0,0.25895495]
[1643799877965,0.12969676,38559.0,38557.0,0.25895495]
[1643799878768,0.064848,38559.0,38557.0,0.25895495]
[1643799880770,0.064848,38559.0,38557.0,0.23134874]
[1643799881812,0.12987743,38561.0,38557.0,0.23134874]
[1643799882412,0.12969203,38561.0,38557.0,0.23134874]
[1643799882912,0.064846,38561.0,38557.0,0.23134874]
[1643799883414,0.097225,38559.0,38557.0,0.23244453]
[1643799883612,0.064848,38560.0,38557.0,0.23244453]
[1643799884412,0.064848,38560.0,38557.0,0.23134874]
[1643799884612,0.064848,38560.0,38557.0,0.23244454]
[1643799886663,0.064848,38560.0,38557.0,0.23134874]
[1643799886864,0.064848,38560.0,38557.0,0.2324445]
[1643799887667,0.4201854,38561.0,38557.0,0.2324445]
[1643799887866,0.42,38561.0,38557.0,0.23134874]
[1643799888167,0.42,38561.0,38557.0,0.23244449]
[1643799888366,0.4201854,38561.0,38557.0,0.23255533]
[1643799889110,0.4201854,38561.0,38557.0,0.23134874]
[1643799889310,0.4201854,38561.0,38557.0,0.23244449]
[1643799890311,0.4201854,38561.0,38557.0,0.23134874]
[1643799890512,0.4201854,38561.0,38557.0,0.2324445]
[1643799891118,0.42,38561.0,38557.0,0.2324445]
[1643799892363,0.4201854,38561.0,38557.0,0.2324445]
[1643799892764,0.4201854,38561.0,38557.0,0.23134874]
[1643799892965,0.4201854,38561.0,38557.0,0.2324445]
[1643799893968,0.4201854,38561.0,38557.0,0.23134874]
[1643799894167,0.4201854,38561.0,38557.0,0.2324445]
[1643799894969,0.4201854,38561.0,38557.0,0.23255534]
[1643799895169,0.4201854,38561.0,38557.0,0.23145958]
[1643799895371,0.4201854,38561.0,38557.0,0.23255534]
[1643799895669,0.4201854,38561.0,38557.0,0.2324445]
[1643799896110,0.064846,38560.0,38557.0,0.2324445]
[1643799896314,0.064846,38560.0,38557.0,0.23134874]
[1643799896512,0.064846,38560.0,38557.0,0.2324445]
[1643799896708,0.064846,38560.0,38557.0,0.2824445]
[1643799897510,0.064846,38560.0,38557.0,0.28134874]
[1643799897712,0.064846,38560.0,38557.0,0.2824445]
[1643799898611,0.064846,38560.0,38557.0,0.2324445]
[1643799898816,0.064846,38560.0,38557.0,0.23134874]
[1643799899013,0.064846,38560.0,38557.0,0.2324445]
[1643799900058,0.064846,38560.0,38557.0,0.23134874]
[1643799900259,0.064846,38560.0,38557.0,0.2324445]
[1643799901259,0.064846,38560.0,38557.0,0.23134874]
[1643799901461,0.064846,38560.0,38557.0,0.23244451]
[1643799901659,0.064846,38560.0,38557.0,0.00109577]
[1643799902460,0.064846,38560.0,38556.0,0.00011084]
[1643799902660,0.0650314,38560.0,38557.0,0.00109577]
[1643799903161,0.0001854,38560.0,38557.0,0.00109577]
[1643799903363,0.4201854,38561.0,38557.0,0.00109577]
[1643799903617,0.4201854,38561.0,38556.0,0.00011084]
[1643799903815,0.4201854,38561.0,38557.0,0.00109577]
[1643799904019,0.42,38561.0,38557.0,0.00109577]
[1643799904714,0.42,38561.0,38556.0,0.00011084]
[1643799904914,0.42,38561.0,38557.0,0.00109576]
[1643799905314,0.48484631,38561.0,38557.0,0.00109576]
[1643799905515,0.064846,38560.0,38557.0,0.00109576]
[1643799905817,0.064846,38560.0,38557.0,0.0012066]
[1643799906018,0.064846,38560.0,38557.0,0.00011084]
[1643799906217,0.0650314,38560.0,38557.0,0.00109577]
[1643799906917,0.064846,38560.0,38557.0,0.00120661]
[1643799907118,0.064846,38560.0,38557.0,0.00011084]
[1643799907359,0.064846,38560.0,38557.0,0.00120661]
[1643799907560,0.0650314,38560.0,38557.0,0.00109577]
[1643799908161,0.064846,38560.0,38557.0,0.00120661]
[1643799908361,0.064846,38560.0,38557.0,0.00011084]
[1643799908561,0.064846,38560.0,38557.0,0.00120661]
[1643799908763,0.0650314,38560.0,38557.0,0.00109577]
[1643799909365,0.064846,38560.0,38557.0,0.00109577]
[1643799909563,0.064846,38560.0,38556.0,0.00011084]
[1643799909763,0.064846,38560.0,38557.0,0.00109577]
[1643799910063,0.0650314,38560.0,38557.0,0.00109577]
[1643799910264,0.0001854,38560.0,38557.0,0.00109577]
[1643799910464,0.4201854,38561.0,38557.0,0.00109577]
[1643799910865,0.4201854,38561.0,38557.0,0.00109576]
[1643799911122,0.42,38561.0,38557.0,0.00109576]
[1643799911924,0.42,38561.0,38556.0,0.00011084]
[1643799912122,0.42,38561.0,38557.0,0.00109576]
[1643799912322,0.06484791,38560.0,38557.0,0.00109576]
[1643799912523,0.12969491,38560.0,38557.0,0.00109576]
[1643799913122,0.12969491,38560.0,38556.0,0.00011084]
[1643799913325,0.12988031,38560.0,38557.0,0.00109577]
[1643799913925,0.12969491,38560.0,38557.0,0.00109577]
[1643799914128,0.24454491,38560.0,38557.0,0.00109577]
[1643799914328,0.24454491,38560.0,38556.0,0.00011084]
[1643799914329,0.349323,38559.0,38556.0,0.00011084]
[1643799914530,0.3065662,38558.0,38557.0,0.00109577]
[1643799914762,0.4868102,38558.0,38557.0,0.00109577]
[1643799915564,0.56149746,38558.0,38553.0,0.00011084]
[1643799915764,0.06485241,38557.0,38556.0,0.00109578]
[1643799916864,0.06485241,38557.0,38553.0,0.00011084]
[1643799917067,0.06485241,38557.0,38555.0,0.0010958]
[1643799917068,0.12970441,38557.0,38555.0,0.0010958]
[1643799917966,0.12970441,38557.0,38553.0,0.00011084]
[1643799918167,0.12970441,38557.0,38554.0,0.0010958]
[1643799918823,0.17970441,38557.0,38554.0,0.0010958]
[1643799919124,0.17970441,38557.0,38552.0,0.00011084]
[1643799919125,0.349323,38556.0,38552.0,0.00011084]
[1643799919322,0.35569361,38557.0,38554.0,0.00109582]
[1643799919726,0.17970441,38557.0,38554.0,0.00109582]
[1643799920427,0.17970441,38557.0,38553.0,0.00011084]
[1643799920623,0.17970441,38557.0,38554.0,0.00109582]
[1643799921624,0.17970441,38557.0,38553.0,0.00011084]
[1643799921825,0.17970441,38557.0,38554.0,0.00109582]
[1643799922024,0.12970441,38557.0,38554.0,0.00109582]
[1643799922683,0.12970441,38557.0,38553.0,0.00011084]
[1643799922883,0.064852,38557.0,38554.0,0.00109582]
[1643799923284,0.54690455,38558.0,38554.0,0.00109582]
[1643799923485,0.54690455,38558.0,38554.0,0.00120666]
[1643799923887,0.30519335,38558.0,38554.0,0.00120666]
[1643799924084,0.30519335,38558.0,38553.0,0.00011084]
[1643799924286,0.30519335,38558.0,38554.0,0.06594981]
[1643799925086,0.30519335,38558.0,38554.0,0.064854]
[1643799925287,0.5446102,38558.0,38554.0,0.06594981]
[1643799926113,0.23050609,38558.0,38554.0,0.06594981]
[1643799926313,0.23050609,38558.0,38554.0,0.064854]
[1643799926712,0.23050609,38558.0,38554.0,0.06594981]
[1643799927112,0.064855,38559.0,38554.0,0.06594981]
[1643799927615,0.064855,38559.0,38554.0,0.064854]
[1643799927813,0.064855,38559.0,38555.0,0.0010958]
[1643799928012,0.064855,38559.0,38555.0,0.00120664]
[1643799928413,0.064855,38559.0,38555.0,0.06605864]
[1643799928615,0.064855,38559.0,38555.0,0.0659478]
[1643799928813,0.064855,38559.0,38555.0,0.064852]
[1643799929112,0.064855,38559.0,38555.0,0.06594779]
[1643799929766,0.33455642,38559.0,38555.0,0.06594779]
[1643799929967,0.33455642,38559.0,38553.0,0.06496684]
[1643799930269,0.33455642,38559.0,38555.0,0.0005981]
[1643799930270,0.06485533,38558.0,38555.0,0.0005981]
[1643799930566,0.12971133,38558.0,38555.0,0.0005981]
[1643799931167,0.12971133,38558.0,38554.0,0.00011084]
[1643799931368,0.12971133,38558.0,38555.0,0.00059811]
[1643799931967,0.349323,38557.0,38555.0,0.00059811]
[1643799932167,0.12971133,38558.0,38555.0,0.00059811]
[1643799932367,0.12971133,38558.0,38554.0,0.00011084]
[1643799932569,0.12971133,38558.0,38554.0,0.00059811]
[1643799933168,0.12971133,38558.0,38554.0,0.00070895]
[1643799933618,0.12971133,38558.0,38554.0,0.00011084]
[1643799933821,0.12971133,38558.0,38554.0,0.00126345]
[1643799934018,0.064856,38558.0,38554.0,0.00126345]
[1643799934518,0.064856,38558.0,38554.0,0.00084024]
[1643799934719,0.064856,38558.0,38554.0,0.00011084]
[1643799934918,0.064856,38558.0,38554.0,0.00137429]
[1643799935118,0.064856,38558.0,38554.0,0.00126345]
[1643799935722,0.064856,38558.0,38554.0,0.00137429]
[1643799935919,0.064856,38558.0,38554.0,0.00011084]
[1643799936319,0.064856,38558.0,38553.0,0.064856]
[1643799937019,0.064856,38558.0,38553.0,0.06496684]
[1643799940169,0.29491973,38558.0,38553.0,0.06496684]
[1643799940370,0.064856,38558.0,38553.0,0.06496684]
[1643799941013,0.064856,38558.0,38553.0,0.064856]
[1643799941514,0.064856,38558.0,38553.0,0.06496684]
[1643799942115,0.064856,38558.0,38553.0,0.064856]
[1643799942615,0.064856,38558.0,38553.0,0.06496684]
[1643799943316,0.064856,38558.0,38553.0,0.064856]
[1643799944016,0.064856,38558.0,38553.0,0.06496684]
[1643799944616,0.064856,38558.0,38553.0,0.064856]
[1643799945266,0.064856,38558.0,38553.0,0.06496684]
[1643799947367,0.3123637,38558.0,38553.0,0.06496684]
[1643799947968,0.064856,38558.0,38553.0,0.06496684]
[1643799948172,0.12971,38558.0,38553.0,0.06496684]
[1643799948518,0.064854,38557.0,38553.0,0.06496684]
[1643799950421,0.064854,38557.0,38553.0,0.00011084]
[1643799950618,0.064854,38557.0,38552.0,0.06605584]
[1643799950823,0.064854,38557.0,38552.0,0.05120384]
[1643799951620,0.064854,38557.0,38552.0,0.05011084]
[1643799951819,0.064854,38557.0,38552.0,0.05120648]
[1643799952468,0.064854,38557.0,38552.0,0.00109564]
[1643799952871,0.064854,38557.0,38551.0,0.3282595]
[1643799953168,0.064854,38557.0,38552.0,0.00109564]
[1643799953967,0.064854,38557.0,38551.0,0.00011084]
[1643799954168,0.064854,38557.0,38552.0,0.00109564]
[1643799955169,0.064854,38557.0,38551.0,0.3282595]
[1643799955369,0.064854,38557.0,38552.0,0.00109503]
[1643799956026,0.064854,38557.0,38552.0,0.00120587]
[1643799956420,0.064854,38557.0,38552.0,0.00011084]
[1643799956620,0.064854,38557.0,38552.0,0.00109503]
[1643799957223,0.064854,38557.0,38552.0,0.00120587]
[1643799957621,0.064854,38557.0,38552.0,0.00011084]
[1643799957821,0.064854,38557.0,38552.0,0.00109503]
[1643799958022,0.064854,38557.0,38552.0,0.05109503]
[1643799958422,0.064854,38557.0,38552.0,0.05120587]
[1643799958727,0.064854,38557.0,38552.0,0.05011084]
[1643799958922,0.064854,38557.0,38552.0,0.05120601]
[1643799959966,0.064854,38557.0,38552.0,0.05011084]
[1643799960167,0.064854,38557.0,38552.0,0.05022929]
[1643799961168,0.064854,38557.0,38552.0,0.00011084]
[1643799961373,0.064854,38557.0,38552.0,0.00109517]
[1643799962068,0.064854,38557.0,38552.0,0.00120601]
[1643799962367,0.064854,38557.0,38552.0,0.00011084]
[1643799962567,0.064854,38557.0,38552.0,0.00109514]
[1643799963169,0.064854,38557.0,38552.0,0.00120598]
[1643799963629,0.064854,38557.0,38552.0,0.00011084]
[1643799963824,0.064854,38557.0,38552.0,0.00109514]
[1643799964425,0.064854,38557.0,38552.0,0.00120598]
[1643799964824,0.064854,38557.0,38552.0,0.00011084]
[1643799965024,0.064854,38557.0,38552.0,0.00109514]
[1643799965628,0.064854,38557.0,38552.0,0.00120598]
[1643799966026,0.064854,38557.0,38552.0,0.00011084]
[1643799966227,0.064854,38557.0,38552.0,0.00109514]
[1643799966827,0.064854,38557.0,38552.0,0.05120598]
[1643799967265,0.064854,38557.0,38552.0,0.05011084]
[1643799967467,0.064854,38557.0,38552.0,0.05120598]
[1643799967666,0.064854,38557.0,38552.0,0.00120598]
[1643799968469,0.064854,38557.0,38552.0,0.00011084]
[1643799968669,0.064854,38557.0,38552.0,0.00109514]
[1643799969271,0.064854,38557.0,38552.0,0.00120598]
[1643799969669,0.064854,38557.0,38552.0,0.00011084]
[1643799969873,0.064854,38557.0,38552.0,0.00109514]
[1643799970470,0.064854,38557.0,38552.0,0.00120598]
[1643799970870,0.06060669,38558.0,38553.0,0.25]
[1643799971123,0.064856,38557.0,38553.0,0.00011084]
[1643799971524,0.064856,38557.0,38552.0,0.00120598]
[1643799971926,0.064856,38557.0,38552.0,0.00011084]
[1643799972124,0.064856,38557.0,38552.0,0.00109514]
[1643799972527,0.064855,38556.0,38552.0,0.00109514]
[1643799972727,0.064855,38556.0,38552.0,0.00120598]
[1643799973129,0.064855,38556.0,38552.0,0.00011084]
[1643799973427,0.064855,38556.0,38552.0,0.00109513]
[1643799973927,0.064855,38556.0,38552.0,0.00120597]
[1643799974328,0.064855,38556.0,38552.0,0.00011084]
[1643799974531,0.064855,38556.0,38552.0,0.00109513]
[1643799975272,0.064855,38556.0,38552.0,0.00120597]
[1643799975574,0.064855,38556.0,38552.0,0.00011084]
[1643799975872,0.064855,38556.0,38552.0,0.00109513]
[1643799976273,0.064855,38556.0,38552.0,0.00120597]
[1643799976774,0.064855,38556.0,38552.0,0.00011084]
[1643799976972,0.064855,38556.0,38552.0,0.00109514]
[1643799977574,0.064855,38556.0,38552.0,0.00120598]
[1643799977974,0.064855,38556.0,38552.0,0.00011084]
[1643799978175,0.064855,38556.0,38552.0,0.00109514]
[1643799978823,0.064855,38556.0,38552.0,0.00120598]
[1643799979224,0.064855,38556.0,38552.0,0.00011084]
[1643799979424,0.064854,38555.0,38552.0,0.00109514]
[1643799980024,0.064854,38555.0,38552.0,0.00120598]
[1643799980923,0.06060669,38558.0,38552.0,0.00120598]
[1643799980924,0.064857,38553.0,38552.0,0.00120598]
[1643799981124,0.064857,38553.0,38552.0,0.00109514]
[1643799981325,0.064857,38553.0,38551.0,0.28656164]
[1643799981724,0.064857,38553.0,38551.0,0.2864508]
[1643799982373,0.064854,38555.0,38551.0,0.2864508]
[1643799982570,0.1759892,38559.0,38551.0,0.2864508]
[1643799982769,0.21743585,38560.0,38551.0,0.2864508]
[1643799983370,0.26533824,38558.0,38551.0,0.2864508]
[1643799983770,0.26533824,38558.0,38551.0,0.28656164]
[1643799984070,0.33018924,38558.0,38551.0,0.28656164]
[1643799984271,0.33141167,38558.0,38551.0,0.28656164]
[1643799984471,0.064851,38557.0,38551.0,0.28656164]
[1643799984873,0.064851,38557.0,38552.0,0.05]
[1643799985071,0.064851,38557.0,38552.0,0.05011084]
[1643799986125,0.064851,38557.0,38552.0,0.26876282]
[1643799986326,0.064851,38557.0,38552.0,0.26754947]
[1643799986532,0.129704,38557.0,38552.0,0.05011084]
[1643799986730,0.064853,38556.0,38553.0,0.21861313]
[1643799986926,0.064853,38556.0,38553.0,0.21872397]
[1643799987131,0.064853,38556.0,38553.0,0.00011084]
[1643799987326,0.00122243,38558.0,38553.0,0.00011084]
[1643799987531,0.21743585,38560.0,38551.0,0.30712932]
[1643799987727,0.39342505,38560.0,38551.0,0.30712932]
[1643799987928,0.25720408,38558.0,38552.0,0.22343703]
[1643799988128,0.25720408,38558.0,38552.0,0.00011084]
[1643799988527,0.25720408,38558.0,38552.0,0.15011084]
[1643799988528,0.32205308,38558.0,38552.0,0.15011084]
[1643799988728,0.32110469,38558.0,38552.0,0.15]
[1643799988927,0.32205307,38558.0,38551.0,0.00011084]
[1643799989127,0.32205807,38558.0,38551.0,0.00011084]
[1643799989328,0.32205807,38558.0,38551.0,0.32810105]
[1643799989528,0.32205807,38558.0,38552.0,0.05]
[1643799989774,0.064855,38557.0,38551.0,0.32810105]
[1643799989975,0.064855,38557.0,38551.0,0.32821189]
[1643799990777,0.064855,38557.0,38552.0,0.22253309]
[1643799990977,0.064855,38557.0,38552.0,0.22264393]
[1643799991178,0.064855,38557.0,38552.0,0.00011084]
[1643799991676,0.33759476,38557.0,38551.0,0.34886993]
[1643799991878,0.33759476,38557.0,38552.0,0.21441542]
[1643799992076,0.33759476,38557.0,38552.0,0.21452626]
[1643799992276,0.33759476,38557.0,38552.0,0.00011084]
[1643799992476,0.33759476,38557.0,38551.0,0.34886993]
[1643799992680,0.33759476,38557.0,38552.0,0.21677631]
[1643799992976,0.064855,38557.0,38552.0,0.21677631]
[1643799993177,0.064855,38557.0,38552.0,0.21688715]
[1643799993377,0.064855,38557.0,38552.0,0.00011084]